bitfinex-derivatives/quotes_SOLF0:USTF0_20230103
["timestamp","ask_amount","ask_price","bid_price","bid_amount"]
[1672769638594,0.06068919,12.722,12.699,50.0]
[1672769638800,0.06513553,12.715,12.702,19.42]
[1672769639118,0.06876284,12.713,12.71,19.45]
[1672769639324,0.06063663,12.716,12.703,5.0]
[1672769639535,0.06117572,12.714,12.707,19.34]
[1672769639745,0.06025388,12.715,12.707,19.34]
[1672769640060,0.06733245,12.715,12.71,5.0]
[1672769640482,0.06733245,12.715,12.708,19.45]
[1672769641531,0.06733245,12.715,12.704,19.35]
[1672769641738,0.06733245,12.715,12.705,5.0]
[1672769641953,0.06733245,12.715,12.7,19.37]
[1672769642164,0.06332747,12.712,12.7,19.37]
[1672769642367,0.0656481,12.71,12.704,19.27]
[1672769642585,0.07096139,12.711,12.704,19.27]
[1672769642791,0.06276266,12.712,12.705,5.0]
[1672769643105,0.06188478,12.713,12.704,19.27]
[1672769643313,0.06952894,12.713,12.7,24.45]
[1672769643527,0.06952894,12.713,12.697,19.45]
[1672769643741,0.06515585,12.709,12.697,19.45]
[1672769644054,5.0,12.718,12.706,5.0]
[1672769644468,5.0,12.718,12.701,19.36]
[1672769644469,50.0,12.717,12.701,19.36]
[1672769644683,50.0,12.717,12.698,24.3]
[1672769644892,5.0,12.718,12.698,24.3]
[1672769645103,0.07100605,12.712,12.704,0.0702691]
[1672769645419,0.06399921,12.712,12.704,0.06549191]
[1672769646885,5.06399921,12.712,12.704,0.06549191]
[1672769647093,48.14699921,12.712,12.704,0.06549191]
[1672769647310,19.36,12.706,12.704,0.00549191]
[1672769647626,5.0,12.705,12.688,57.14285714]
[1672769648254,19.28,12.697,12.688,57.14285714]
[1672769648569,5.0,12.696,12.688,57.14285714]
[1672769648776,19.45,12.694,12.672,19.45]
[1672769648985,0.06858946,12.687,12.672,19.45]
[1672769649200,0.06626173,12.684,12.673,5.0]
[1672769649412,5.0,12.693,12.68,5.0]
[1672769649621,5.0,12.693,12.68,24.45]
[1672769649832,5.0,12.694,12.68,24.45]
[1672769650248,5.0,12.694,12.683,0.06940715]
[1672769650461,0.06295223,12.691,12.683,0.06940715]
[1672769651092,0.06295223,12.691,12.684,19.45]
[1672769651407,0.06295223,12.691,12.685,5.0]
[1672769652245,0.00295223,12.691,12.685,5.0]
[1672769652457,45.4982,12.71,12.69,19.37]
[1672769652773,5.0,12.709,12.697,5.0]
[1672769652984,45.4982,12.71,12.697,5.0]
[1672769653399,0.07011427,12.708,12.699,0.06198978]
[1672769653610,50.0,12.707,12.699,0.06561783]
[1672769653933,5.0,12.706,12.699,0.06561783]
[1672769654349,19.45,12.705,12.699,0.06561783]
[1672769654561,5.0,12.704,12.689,5.0]
[1672769654872,5.0,12.704,12.683,19.45]
[1672769655085,5.0,12.704,12.678,132.8]
[1672769655297,5.0,12.704,12.678,55.0]
[1672769655502,0.06410304,12.699,12.69,0.06001346]
[1672769655715,0.06410304,12.699,12.69,0.07023203]
[1672769656979,19.51410304,12.699,12.69,0.07023203]
[1672769657189,5.0,12.696,12.69,0.07023203]
[1672769657610,5.0,12.698,12.69,0.07023203]
[1672769658031,0.06410304,12.699,12.69,0.07023203]
[1672769658867,24.36,12.696,12.69,0.07023203]
[1672769659080,5.0,12.696,12.69,0.07023203]
[1672769662760,5.0,12.698,12.69,0.07023203]
[1672769663067,0.06410304,12.699,12.69,0.07023203]
[1672769664018,58.99,12.714,12.686,5.0]
[1672769664019,5.0,12.714,12.694,5.0]
[1672769664225,46.6555,12.713,12.694,5.0]
[1672769664441,5.0,12.712,12.696,19.45]
[1672769664645,5.0,12.712,12.697,5.0]
[1672769664856,5.0,12.711,12.689,19.4]
[1672769665176,0.07083183,12.704,12.696,0.06056646]
[1672769665383,0.06063855,12.704,12.696,0.06962744]
[1672769665802,5.06063855,12.704,12.696,0.06962744]
[1672769666013,0.06063855,12.704,12.696,0.06962744]
[1672769669799,19.42063855,12.704,12.696,0.06962744]
[1672769670533,0.06063855,12.704,12.696,0.06962744]
[1672769676000,46.37683855,12.704,12.696,0.06962744]
[1672769676421,46.15871327,12.704,12.696,0.06962744]
[1672769677474,46.21994287,12.704,12.696,0.06962744]
[1672769680206,0.0612296,12.704,12.696,0.06962744]
[1672769682414,0.0612296,12.704,12.696,5.06962744]
[1672769682830,43.4628,12.712,12.699,19.3]
[1672769683041,19.52,12.724,12.705,19.34]
[1672769683256,43.8104,12.721,12.706,5.0]
[1672769683461,5.0,12.72,12.706,5.0]
[1672769683991,0.07079605,12.717,12.709,0.06222182]
[1672769684309,0.07119272,12.717,12.709,0.06683056]
[1672769686513,0.07119272,12.717,12.709,5.06683056]
[1672769688086,43.8104,12.727,12.715,19.45]
[1672769688299,43.8104,12.727,12.716,5.0]
[1672769688512,19.38,12.737,12.716,5.0]
[1672769688715,48.9104,12.736,12.716,5.0]
[1672769688929,5.0,12.735,12.716,5.0]
[1672769689141,0.06168464,12.73,12.721,0.06216481]
[1672769690931,0.06168464,12.73,12.722,19.27]
[1672769691244,0.06168464,12.73,12.723,5.0]
[1672769691456,5.0,12.74,12.726,5.0]
[1672769691663,43.9104,12.743,12.726,5.0]
[1672769691868,5.0,12.742,12.726,5.0]
[1672769692500,0.06042545,12.738,12.73,0.07147633]
[1672769701854,0.06042545,12.738,12.733,19.42]
[1672769702172,44.8503,12.747,12.737,5.0]
[1672769702381,5.0,12.755,12.737,5.0]
[1672769702592,49.8503,12.755,12.737,5.0]
[1672769703217,0.06249702,12.75,12.742,0.06650375]
[1672769703429,0.06622593,12.75,12.742,0.06650375]
[1672769703642,5.06622593,12.75,12.742,0.06650375]
[1672769703854,50.0,12.748,12.742,0.06650375]
[1672769704170,5.0,12.747,12.742,0.06650375]
[1672769704374,19.39440735,12.747,12.742,0.06650375]
[1672769704582,19.39440735,12.747,12.731,19.45]
[1672769704583,5.0,12.746,12.725,19.45]
[1672769704901,5.0,12.746,12.726,5.0]
[1672769705320,5.0,12.744,12.721,19.45]
[1672769705526,19.43734983,12.737,12.728,0.07148354]
[1672769705738,19.37,12.737,12.728,0.06519995]
[1672769705950,5.0,12.736,12.728,0.06519995]
[1672769706374,0.05334011,12.728,12.716,5.0]
[1672769707226,0.05334011,12.728,12.718,5.0]
[1672769707430,0.06087382,12.727,12.719,0.06351938]
[1672769710369,5.0,12.726,12.706,19.45]
[1672769710793,19.45,12.723,12.702,5.0]
[1672769711003,5.0,12.722,12.702,5.0]
[1672769711423,0.06717985,12.716,12.708,0.06017296]
[1672769715213,5.0,12.715,12.696,5.0]
[1672769715414,63.99,12.715,12.696,5.0]
[1672769715623,5.0,12.715,12.694,5.0]
[1672769715945,19.45,12.713,12.693,19.45]
[1672769716148,0.0649574,12.707,12.699,0.0675247]
[1672769716363,0.06955537,12.707,12.699,0.06292509]
[1672769716996,5.06955537,12.707,12.699,0.06292509]
[1672769717626,5.06955537,12.707,12.699,2.509e-05]
[1672769717837,83.39955537,12.707,12.699,2.509e-05]
[1672769718045,24.37955537,12.707,12.699,2.509e-05]
[1672769718987,83.39955537,12.707,12.699,2.509e-05]
[1672769719202,24.37955537,12.707,12.699,2.509e-05]
[1672769719412,5.06955537,12.707,12.699,2.509e-05]
[1672769720465,64.08955537,12.707,12.699,2.509e-05]
[1672769720680,5.06955537,12.707,12.699,2.509e-05]
[1672769721201,24.47955537,12.707,12.699,2.509e-05]
[1672769721408,5.0,12.699,12.673,19.42]
[1672769721620,50.0,12.698,12.67,50.0]
[1672769721833,5.0,12.697,12.671,5.0]
[1672769722039,5.0,12.699,12.671,5.0]
[1672769722355,5.0,12.704,12.681,5.06925871]
[1672769722570,5.0,12.704,12.693,19.45]
[1672769722779,5.0,12.704,12.694,0.07101702]
[1672769722993,0.06833182,12.703,12.694,0.07101702]
[1672769725096,1360.95885546,12.706,12.7,19.45]
[1672769725303,5.0,12.718,12.705,19.45]
[1672769725520,55.0,12.718,12.698,5.0]
[1672769725720,5.0,12.717,12.698,5.0]
[1672769725934,19.42710267,12.717,12.698,5.0]
[1672769726253,0.06922377,12.712,12.703,0.06587849]
[1672769726463,0.06179318,12.712,12.703,0.06469487]
[1672769726885,0.06179318,12.712,12.705,19.3]
[1672769727095,0.06179318,12.712,12.706,5.0]
[1672769727298,0.06179318,12.712,12.705,19.3]
[1672769729721,0.06179318,12.712,12.703,0.06469487]
[1672769734976,0.06179318,12.712,12.706,5.0]
[1672769735187,45.3375,12.719,12.706,5.0]
[1672769735607,5.0,12.725,12.706,5.0]
[1672769735813,44.554,12.724,12.706,5.0]
[1672769736237,0.06935287,12.719,12.71,0.06813835]
[1672769737290,44.554,12.724,12.716,5.0]
[1672769737500,14.41838592,12.723,12.716,5.0]
[1672769737922,5.0,12.728,12.716,5.0]
[1672769738343,0.06890768,12.726,12.718,0.06559541]
[1672769738979,0.06890768,12.726,12.72,19.45]
[1672769739182,0.06890768,12.726,12.721,5.0]
[1672769739811,42.8804,12.737,12.723,19.45]
[1672769740026,42.8804,12.737,12.724,5.0]
[1672769740230,14.40958632,12.736,12.724,5.0]
[1672769740973,0.0699969,12.734,12.726,0.06281008]
[1672769741182,0.0699969,12.734,12.727,19.45]
[1672769741393,0.0699969,12.734,12.728,5.0]
[1672769741710,0.01958322,12.736,12.733,19.45]
[1672769741917,0.01958322,12.736,12.734,5.0]
[1672769742128,88.54232242,12.747,12.734,5.0]
[1672769742338,83.54232242,12.747,12.734,5.0]
[1672769742549,0.0662977,12.745,12.736,0.06156009]
[1672769742864,0.06614651,12.745,12.741,19.36]
[1672769743179,14.39204787,12.752,12.742,5.0]
[1672769744014,147.76401474,12.757,12.742,5.0]
[1672769744331,0.06964004,12.754,12.745,0.06312621]
[1672769744543,50.0,12.749,12.735,5.0]
[1672769744963,97.97801474,12.748,12.737,19.27]
[1672769745174,97.97801474,12.748,12.74,19.36]
[1672769745386,14.39204787,12.754,12.74,19.36]
[1672769745592,0.06280648,12.751,12.734,24.45]
[1672769745798,19.45,12.75,12.73,19.35]
[1672769746012,19.31,12.747,12.727,19.3]
[1672769746224,5.0,12.746,12.727,19.3]
[1672769746643,0.06084966,12.741,12.733,0.06873248]
[1672769748220,5.06084966,12.741,12.733,0.06873248]
[1672769748533,14.39204787,12.74,12.733,0.06873248]
[1672769748750,5.0,12.739,12.733,0.06873248]
[1672769749064,55.0,12.739,12.718,5.0]
[1672769749275,5.0,12.736,12.718,5.0]
[1672769749484,19.37,12.734,12.714,19.43]
[1672769749693,58.9,12.733,12.714,19.43]
[1672769749897,5.0,12.732,12.714,19.43]
[1672769750107,0.06443338,12.727,12.719,0.0681229]
[1672769750321,0.0702426,12.727,12.719,0.0681229]
[1672769750951,0.0702426,12.727,12.719,5.0681229]
[1672769751794,0.0702426,12.727,12.721,19.36]
[1672769752003,0.0702426,12.727,12.722,5.0]
[1672769752215,14.40808615,12.733,12.722,5.0]
[1672769752741,14.40808615,12.736,12.727,19.45]
[1672769752952,14.40808615,12.736,12.728,5.0]
[1672769753162,0.06191063,12.736,12.728,5.06352025]
[1672769754736,14.40033225,12.743,12.728,5.06352025]
[1672769754737,14.40033225,12.743,12.732,5.0]
[1672769755151,14.40033225,12.745,12.732,5.0]
[1672769755893,0.07140059,12.743,12.734,0.06827037]
[1672769756102,0.07140059,12.743,12.736,5.0]
[1672769758102,0.07140059,12.743,12.735,19.43]
[1672769759469,0.07140059,12.743,12.734,0.06827037]
[1672769762513,0.07140059,12.743,12.736,19.45]
[1672769762727,0.07140059,12.743,12.737,5.0]
[1672769763150,0.07140059,12.743,12.734,0.06827037]
[1672769766512,14.47173284,12.743,12.734,0.06827037]
[1672769766829,14.31588847,12.743,12.734,0.06827037]
[1672769767139,50.0,12.739,12.725,19.34]
[1672769767353,5.0,12.738,12.722,19.42]
[1672769767559,19.31588847,12.738,12.722,19.42]
[1672769767771,5.0,12.737,12.719,19.45]
[1672769767979,19.31588847,12.737,12.719,19.45]
[1672769768194,0.06852442,12.732,12.724,0.0670736]
[1672769768403,0.0670969,12.732,12.724,0.0670736]
[1672769768608,50.0,12.729,12.724,0.0670736]
[1672769768824,0.0670969,12.732,12.724,0.0670736]
[1672769769035,19.31588847,12.728,12.724,0.0670736]
[1672769769241,5.0,12.727,12.724,0.0670736]
[1672769769561,5.0,12.727,12.721,0.0702282]
[1672769771137,5.06075545,12.728,12.721,0.0702282]
[1672769771349,0.06075545,12.728,12.721,0.0702282]
[1672769774291,14.47661848,12.728,12.721,0.0702282]
[1672769775133,50.0,12.75,12.727,19.37]
[1672769775341,45.943,12.743,12.727,19.37]
[1672769775650,50.0,12.74,12.715,5.0]
[1672769775867,5.0,12.739,12.715,5.0]
[1672769776077,0.0671135,12.731,12.723,0.06995468]
[1672769776289,5.0,12.737,12.717,19.45]
[1672769776490,0.06543209,12.731,12.723,0.06442837]
[1672769776704,0.06109487,12.731,12.723,0.06442837]
[1672769777225,50.0,12.73,12.723,0.06442837]
[1672769777650,19.40726049,12.729,12.723,0.06442837]
[1672769777861,5.0,12.728,12.723,0.06442837]
[1672769778070,19.40726049,12.728,12.723,0.06442837]
[1672769778486,14.40726049,12.728,12.723,0.06442837]
[1672769778698,5.0,12.738,12.727,19.42]
[1672769778913,46.0883,12.739,12.727,19.42]
[1672769779124,14.40777448,12.737,12.728,5.0]
[1672769779542,5.0,12.748,12.728,5.0]
[1672769779752,0.06398921,12.739,12.731,0.06865256]
[1672769780070,0.06398921,12.739,12.731,19.40865256]
[1672769783220,0.06398921,12.739,12.724,19.45]
[1672769783533,5.0,12.739,12.724,19.45]
[1672769784379,0.06792959,12.736,12.727,0.0649504]
[1672769789522,0.06792959,12.736,12.73,19.36]
[1672769789735,5.0,12.744,12.734,19.3]
[1672769790890,0.06492555,12.743,12.735,0.06472091]
[1672769791630,0.06492555,12.743,12.735,5.06472091]
[1672769792153,0.06492555,12.743,12.735,0.06472091]
[1672769793207,43.7529,12.75,12.738,19.36]
[1672769793523,43.7529,12.75,12.739,5.0]
[1672769793731,5.0,12.754,12.739,5.0]
[1672769794256,0.06209084,12.75,12.742,0.06176867]
[1672769798457,0.06209084,12.75,12.742,19.40176867]
[1672769798662,5.0,12.759,12.745,19.45]
[1672769798874,5.0,12.759,12.746,5.0]
[1672769799080,55.0,12.76,12.746,5.0]
[1672769799297,5.0,12.76,12.746,5.0]
[1672769799609,55.0,12.76,12.746,5.0]
[1672769799819,0.0684105,12.757,12.749,0.07045772]
[1672769800662,0.0684105,12.757,12.743,55.0]
[1672769800663,5.0,12.756,12.737,19.34]
[1672769800872,50.0,12.75,12.734,19.45]
[1672769801084,50.0,12.75,12.73,19.37]
[1672769801395,63.83,12.749,12.731,5.0]
[1672769801606,5.0,12.748,12.731,5.0]
[1672769801815,0.0704729,12.744,12.736,0.06291275]
[1672769806431,0.0704729,12.744,12.736,19.51291275]
[1672769807697,0.0704729,12.744,12.736,0.06291275]
[1672769808535,0.0704729,12.744,12.736,19.51291275]
[1672769809274,5.0,12.754,12.74,5.0]
[1672769809582,63.79,12.758,12.74,5.0]
[1672769809583,5.0,12.758,12.742,19.45]
[1672769809798,5.0,12.758,12.745,19.34]
[1672769810217,0.06465672,12.756,12.747,0.06233322]
[1672769812636,50.0,12.751,12.747,3.322e-05]
[1672769812948,5.0,12.75,12.747,3.322e-05]
[1672769813160,5.0,12.75,12.73,19.45]
[1672769813365,5.0,12.75,12.731,5.0]
[1672769813581,5.0,12.75,12.737,19.36]
[1672769813786,0.06926421,12.748,12.739,0.06867268]
[1672769815788,0.06926421,12.748,12.733,19.34]
[1672769815995,5.0,12.747,12.73,19.35]
[1672769816418,5.0,12.747,12.731,5.0]
[1672769816937,5.0,12.747,12.735,0.06513354]
[1672769817148,0.06206683,12.743,12.735,0.06513354]
[1672769818205,0.06206683,12.743,12.736,19.45]
[1672769818414,0.06206683,12.743,12.737,5.0]
[1672769818627,5.0,12.754,12.739,19.45]
[1672769818941,5.0,12.754,12.74,5.0]
[1672769819781,42.4789,12.756,12.743,0.06087625]
[1672769819782,0.06634967,12.751,12.743,0.06087625]
[1672769819994,0.06439859,12.751,12.743,5.06087625]
[1672769821045,0.06439859,12.751,12.743,0.06087625]
[1672769821776,0.06439859,12.751,12.743,5.06087625]
[1672769821987,42.4789,12.756,12.747,5.0]
[1672769822197,5.0,12.761,12.747,5.0]
[1672769823042,0.0681494,12.758,12.75,0.06104832]
[1672769825248,44.3632,12.762,12.752,19.45]
[1672769825456,44.3632,12.762,12.753,5.0]
[1672769826091,5.0,12.772,12.753,5.0]
[1672769826300,0.0642233,12.767,12.758,0.06146295]
[1672769828823,43.522,12.771,12.762,19.35]
[1672769829034,50.0,12.781,12.763,5.0]
[1672769829240,45.538,12.779,12.763,5.0]
[1672769829551,5.0,12.778,12.763,5.0]
[1672769829767,0.0612306,12.775,12.766,0.06656782]
[1672769830396,0.0612306,12.775,12.769,19.45]
[1672769830604,0.0612306,12.775,12.77,5.0]
[1672769831757,0.0612306,12.775,12.769,19.45]
[1672769833969,0.0612306,12.775,12.766,0.06656782]
[1672769835862,5.0612306,12.775,12.766,0.06656782]
[1672769836489,5.0,12.773,12.766,0.06656782]
[1672769836911,14.35748468,12.772,12.766,6.782e-05]
[1672769837120,113.73,12.771,12.754,19.45]
[1672769837332,19.45,12.769,12.751,19.34]
[1672769837542,58.74,12.768,12.752,5.0]
[1672769837753,5.0,12.767,12.752,5.0]
[1672769837964,14.35748468,12.768,12.755,5.0]
[1672769838279,0.06261519,12.764,12.755,5.06979937]
[1672769838490,0.0622047,12.764,12.755,5.06155537]
[1672769839645,0.0622047,12.764,12.755,0.06155537]
[1672769840485,14.43540735,12.764,12.755,0.06155537]
[1672769841647,0.0622047,12.764,12.755,5.06155537]
[1672769841854,0.0622047,12.764,12.758,19.3]
[1672769842057,0.0622047,12.764,12.759,5.0]
[1672769842697,14.37320265,12.771,12.761,19.45]
[1672769843011,14.37320265,12.773,12.762,5.0]
[1672769843222,5.0,12.772,12.762,5.0]
[1672769843537,14.37320265,12.771,12.762,5.0]
[1672769843747,14.44213574,12.771,12.762,5.07066366]
[1672769843958,14.44213574,12.771,12.762,0.07066366]
[1672769844272,14.44213574,12.771,12.762,5.07066366]
[1672769844902,0.06893309,12.771,12.762,5.07066366]
[1672769845324,0.06893309,12.771,12.768,19.37]
[1672769845534,14.37320265,12.774,12.769,5.0]
[1672769845744,5.0,12.78,12.769,5.0]
[1672769846272,49.7105,12.783,12.769,5.0]
[1672769846587,0.06805384,12.78,12.772,0.07087809]
[1672769847216,14.42497831,12.78,12.772,0.07087809]
[1672769847637,5.0,12.779,12.772,0.07087809]
[1672769847950,14.35692447,12.778,12.759,19.43]
[1672769848154,5.0,12.777,12.759,19.43]
[1672769848786,14.35692447,12.776,12.764,0.06113144]
[1672769849001,0.06659363,12.772,12.764,0.06113144]
[1672769854563,44.7105,12.783,12.77,19.45]
[1672769854779,44.7105,12.783,12.771,5.0]
[1672769854989,50.0,12.781,12.767,19.45]
[1672769855197,5.0,12.78,12.767,19.45]
[1672769855727,0.06009648,12.778,12.769,0.06035628]
[1672769857092,5.06009648,12.778,12.769,0.06035628]
[1672769859615,0.06009648,12.778,12.769,0.06035628]
[1672769865288,0.06009648,12.778,12.769,5.628e-05]
[1672769865497,50.0,12.772,12.751,44.6293]
[1672769865708,5.0,12.771,12.754,38.58]
[1672769865922,5.0,12.771,12.755,5.0]
[1672769866655,0.06172013,12.767,12.759,0.06218948]
[1672769869068,5.0,12.766,12.745,38.41]
[1672769869279,50.0,12.762,12.745,38.41]
[1672769869484,5.0,12.761,12.745,38.41]
[1672769870121,0.06080051,12.757,12.749,0.06916859]
[1672769882419,5.0,12.756,12.742,38.74]
[1672769883153,48.4957,12.76,12.743,5.0]
[1672769883367,0.06545165,12.756,12.747,0.06794564]
[1672769885671,0.06545165,12.756,12.749,38.58]
[1672769885890,0.06545165,12.756,12.752,38.74]
[1672769886200,0.06545165,12.756,12.753,5.0]
[1672769886410,0.07106025,12.759,12.753,5.0]
[1672769886617,43.1103,12.765,12.753,5.0]
[1672769886831,0.06124995,12.763,12.753,5.0]
[1672769887041,0.06124995,12.763,12.752,38.80034489]
[1672769890409,0.06124995,12.763,12.755,38.74]
[1672769890616,0.06124995,12.763,12.756,5.0]
[1672769892511,0.06124995,12.763,12.755,38.80546138]
[1672769893769,0.06124995,12.763,12.756,5.0]
[1672769897029,5.0,12.77,12.763,0.10005717]
[1672769897239,49.6576,12.771,12.763,0.10005717]
[1672769897451,44.6576,12.771,12.763,0.10005717]
[1672769897870,5.0,12.776,12.763,0.10005717]
[1672769898188,50.0,12.772,12.764,0.0689371]
[1672769898712,5.0,12.771,12.764,0.0689371]
[1672769904177,5.0,12.772,12.764,0.0689371]
[1672769904384,55.0,12.772,12.764,0.0689371]
[1672769904925,55.0,12.772,12.764,3.71e-05]
[1672769905227,63.72,12.772,12.764,3.71e-05]
[1672769905539,5.0,12.772,12.764,3.71e-05]
[1672769906382,55.0,12.772,12.764,3.71e-05]
[1672769907116,5.0,12.772,12.764,3.71e-05]
[1672769908380,55.0,12.772,12.764,3.71e-05]
[1672769909534,58.73,12.771,12.763,9.427e-05]
[1672769909851,50.0,12.764,12.763,9.427e-05]
[1672769910478,58.75,12.766,12.763,9.427e-05]
[1672769910793,50.0,12.764,12.763,9.427e-05]
[1672769910997,108.76,12.764,12.749,38.58]
[1672769911207,5.0,12.761,12.749,38.58]
[1672769911836,5.0,12.761,12.742,38.58]
[1672769912051,0.07009126,12.756,12.747,0.06965025]
[1672769925502,44.4603,12.758,12.756,0.07327416]
[1672769926230,58.77,12.762,12.756,0.07327416]
[1672769926450,46.2615,12.762,12.756,0.07327416]
[1672769935478,0.06692555,12.763,12.756,0.07327416]
[1672769937164,0.06692555,12.763,12.758,38.81]
[1672769937375,0.06692555,12.763,12.759,5.0]
[1672769938214,0.06692555,12.763,12.758,38.81]
[1672769938425,0.00316249,12.763,12.759,5.0]
[1672769938634,0.00316249,12.763,12.758,38.81]
[1672769939370,0.00316249,12.763,12.756,0.07327416]
[1672769939581,0.00316249,12.763,12.758,38.81]
[1672769939790,0.00316249,12.763,12.759,5.0]
[1672769940423,0.00316249,12.763,12.758,38.81]
[1672769942314,0.00316249,12.763,12.756,0.07327416]
[1672769942524,0.00316249,12.763,12.757,38.81]
[1672769942736,0.00316249,12.763,12.758,5.0]
[1672769944206,0.00316249,12.763,12.757,38.81]
[1672769947253,0.00316249,12.763,12.76,38.81]
[1672769947472,38.62,12.78,12.762,38.72]
[1672769947677,63.69,12.779,12.765,38.55]
[1672769947883,5.0,12.778,12.766,5.0]
[1672769948725,50.0,12.773,12.76,38.57]
[1672769948940,5.0,12.772,12.758,43.81]
[1672769949150,49.7918,12.772,12.758,43.81]
[1672769949676,0.06407609,12.769,12.761,0.06675812]
[1672769953144,5.06407609,12.769,12.761,0.06675812]
[1672769956195,58.74,12.768,12.761,5.812e-05]
[1672769956407,5.0,12.767,12.761,5.812e-05]
[1672769957667,5.0,12.768,12.761,5.812e-05]
[1672769957877,5.06407609,12.769,12.761,5.812e-05]
[1672769959447,0.06407609,12.769,12.761,5.812e-05]
[1672769960603,0.06407609,12.769,12.765,38.81]
[1672769960817,0.06407609,12.769,12.766,5.0]
[1672769961133,0.06271646,12.772,12.765,38.81]
[1672769961339,0.06689455,12.773,12.765,38.81]
[1672769961555,0.06911916,12.773,12.765,38.87805769]
[1672769964183,0.06911916,12.773,12.768,38.81]
[1672769964397,0.06911916,12.773,12.769,5.0]
[1672769964917,0.06911916,12.773,12.768,38.81]
[1672769966393,0.06911916,12.773,12.771,38.55]
[1672769966603,0.06641191,12.776,12.771,38.55]
[1672769966915,0.06565741,12.778,12.771,38.55]
[1672769967125,5.0,12.782,12.771,38.55]
[1672769967441,0.06340279,12.779,12.766,38.76]
[1672769967651,104.1161,12.781,12.767,5.0]
[1672769967862,5.0,12.78,12.767,5.0]
[1672769968070,5.0,12.78,12.766,38.76]
[1672769968594,0.06251347,12.777,12.769,0.06562506]
[1672769970384,58.76251347,12.777,12.769,0.06562506]
[1672769970697,5.0,12.776,12.769,0.06562506]
[1672769973853,5.0,12.776,12.769,2.506e-05]
[1672769974167,5.0,12.774,12.762,38.73]
[1672769975010,5.0,12.774,12.759,38.81]
[1672769975220,0.06494216,12.771,12.762,0.07033684]
[1672769975851,38.81,12.769,12.753,38.81]
[1672769976056,63.74,12.768,12.753,38.81]
[1672769976268,5.0,12.768,12.753,38.81]
[1672769976793,5.0,12.768,12.756,0.06602956]
[1672769977002,0.06319247,12.765,12.756,0.06602956]
[1672769978382,0.14727421,12.756,12.753,38.81]
[1672769979641,0.07000835,12.759,12.754,5.0]
[1672769979956,0.07000835,12.759,12.755,38.81]
[1672769980168,0.07000835,12.759,12.756,5.0]
[1672769980482,0.06425915,12.762,12.756,5.0]
[1672769980685,0.06586857,12.763,12.755,38.87779829]
[1672769983731,0.06586857,12.763,12.758,38.57]
[1672769983945,0.06586857,12.763,12.759,5.0]
[1672769984366,0.06586857,12.763,12.758,38.57]
[1672769986891,0.06586857,12.763,12.755,38.87779829]
[1672769991620,0.06586857,12.763,12.755,0.06779829]
[1672769993093,63.75,12.767,12.763,0.01369902]
[1672769993303,58.75,12.767,12.763,0.01369902]
[1672769993515,5.0,12.766,12.754,5.0]
[1672769993937,5.0,12.766,12.756,38.76]
[1672769994144,0.06679148,12.765,12.757,5.0]
[1672769994459,0.06679148,12.765,12.757,0.06543614]
[1672770007079,58.74,12.769,12.757,0.06543614]
[1672770007289,5.0,12.768,12.757,0.06543614]
[1672770008020,0.06519028,12.767,12.757,0.06543614]
[1672770009071,58.75,12.766,12.757,0.06543614]
[1672770009384,5.0,12.765,12.757,0.06543614]
[1672770010330,5.0,12.763,12.757,0.06543614]
[1672770013062,107.8845,12.765,12.757,0.06543614]
[1672770014000,49.1345,12.765,12.757,0.06543614]
[1672770015164,44.1345,12.765,12.757,0.06543614]
[1672770016742,0.06519028,12.767,12.757,0.06543614]
[1672770017056,0.06519028,12.767,12.759,38.83]